Cogmind - Beta 10.2 --- EXPLORER MODE // 2020.11.15 @ 14:23:10 // Halloween2020/ForbiddenLore Player: Chydax Result: Destroyed by D-53 Grenadier with Mini Grenade Launcher Performance ------------- Evolutions (0) 0 Regions Visited (2) 400 Robots Destroyed (22) 110 Value Destroyed (359) 359 Prototype IDs (2) 40 Alien Tech Used (0) 0 Bonus (0) 0 TOTAL SCORE: 909 Bonus ------- None Cogmind --------- Core Integrity 0/250 Matter 300/300 Energy 500/500 System Corruption 0% Temperature Cool (0) Movement Core (250) Ox4 Location -10/Mines Parts ------- > --- POWER (1) -------- (None) > --- PROPULSION (2) --- (None) > --- UTILITY (3) ------ Medium Storage Unit High-capacity Battery Utility Shielding > --- WEAPON (2) ------- Mining Claw > --- INVENTORY (8) ---- Heat Sink Peak State ------------ > --- POWER ------------ Ion Engine > --- PROPULSION ------- Improved Treads Improved Treads > --- UTILITY ---------- Medium Storage Unit High-capacity Battery Utility Shielding > --- WEAPON ----------- Heavy EM Pulse Gun Heavy EM Pulse Gun > --- INVENTORY -------- Ion Engine Improved Treads Improved Treads Heat Sink Medium Laser Light Cannon Mining Laser Mining Claw [Rating: 13] Favorites ----------- Power Ion Engine Engine Ion Engine Propulsion Improved Treads Treads Improved Treads Utility Medium Storage Unit Device Structural Scanner Storage Medium Storage Unit Protection Utility Shielding Weapon Heavy EM Pulse Gun Energy Gun Heavy EM Pulse Gun Ballistic Cannon Light Cannon Special Weapon Mining Laser Slashing Weapon Mining Claw Build | -11 -10 -10 ------- Run | Scr Mat Min Slots Evolved 1 | . 1 . Power . | . . . Propulsion . | . . . Utility 1 | . 1 . Weapon . | . . . Parts Attached 35 | 10 15 10 Power 4 | 3 . 1 Engine 4 | 3 . 1 Core . | . . . Reactor . | . . . Propulsion 7 | 2 3 2 Treads 7 | 2 3 2 Leg . | . . . Wheel . | . . . Hover . | . . . Flight . | . . . Utility 5 | 2 3 . Device 1 | . 1 . Storage 2 | 1 1 . Processor . | . . . Hackware . | . . . Protection 2 | 1 1 . Artifact . | . . . Weapon 19 | 3 9 7 Energy Gun 11 | 3 4 4 Energy Cannon . | . . . Ballistic Gun . | . . . Ballistic Cannon 4 | . 3 1 Launcher . | . . . Special Weapon 1 | . . 1 Impact Weapon . | . . . Slashing Weapon 3 | . 2 1 Piercing Weapon . | . . . Special Melee Weapon . | . . . Unidentified Prototypes . | . . . Parts Lost 12 | . . 12 Power 2 | . . 2 Propulsion 4 | . . 4 Utility . | . . . Weapon 6 | . . 6 Highest Loss Streak 8 | . . 8 Average Slot Usage (%) 98 | . 99 89 Engine 11 | . 12 8 Treads 24 | . 24 23 Device 2 | . 2 . Storage 22 | . 22 25 Protection 12 | . 12 12 Energy Gun 13 | . 14 5 Ballistic Cannon 7 | . 8 3 Slashing Weapon 2 | . . 8 Naked Turns . | . . . Heaviest Build 24 | 19 24 24 Greatest Support 46 | 40 46 46 Greatest Overweight (x) 4 | 2 . 4 Average Overweight (x) . | . . . Largest Inventory Capacity 8 | 8 8 8 Average Capacity 7 | 7 8 8 Most Carried 8 | 6 8 8 Average Carried 6 | 3 7 2 Final Capacity 8 | 8 8 8 Final Carried 8 | 5 8 1 Class Distribution -------------------- 100% | Hacker-Mutant Dominant Class ---------------- Hacker-Mutant | -10/Materials Hacker-Mutant | -10/Mines Resources | -11 -10 -10 ----------- Run | Scr Mat Min Matter Collected 634 | 300 212 122 Remotely . | . . . Salvage Created 1016 | 142 772 102 Parts 48 | 5 40 3 Haulers Intercepted 1 | . 1 . Recyclers Shooed 1 | . 1 . Parts Field Recycled . | . . . Retrieved Matter . | . . . Parts Self-Destructed . | . . . Prevented . | . . . Kills | -11 -10 -10 ------- Run | Scr Mat Min Combat Hostiles Destroyed 16 | . 8 8 Melee 3 | . . 3 Guns 8 | . 6 2 Cannons 3 | . . 3 AOE 2 | . 2 . Classes Destroyed 8 | 2 4 2 Worker 1 | . . 1 Tunneler 4 | 2 2 . Hauler 1 | . 1 . Recycler 5 | 1 4 . Watcher 3 | . 3 . Swarmer 2 | . 2 . Grunt 6 | . 6 . Assembled 8 | . . 8 Best Kill Streak 5 | 2 3 5 Combat Bots Only 5 | . 2 5 Max Kills in Single Turn 2 | 1 2 1 Gunslinging . | . . . Exploded 1 | . 1 . Melee 1 | . . 1 Uniques/NPCs Destroyed . | . . . Combat | -11 -10 -10 -------- Run | Scr Mat Min Damage Taken 1552 | . 235 1317 Core 267 | . 74 193 Absorbed by Shields . | . . . Core Remaining (%) 100 | 100 . . Volleys Fired 64 | 7 41 16 Largest 2 | 2 2 2 Hottest 135 | 90 95 135 Shots Fired 112 | 14 71 27 Gun 77 | 14 53 10 Cannon 31 | . 18 13 Launcher . | . . . Special 4 | . . 4 Kinetic 31 | . 18 13 Thermal 39 | 14 17 8 Explosive . | . . . Electromagnetic 42 | . 36 6 Robot Hit Streak 41 | 7 41 12 Robot Miss Streak 1 | 1 1 1 Penetration Max . | . . . Secondary Targets . | . . . Shots Hit Robots 95 | 12 59 24 Core Hits 43 | 4 24 15 Critical Hits 1 | . . 1 Critical Kills . | . . . Critical Parts Destroyed 1 | . . 1 Melee Attacks 11 | . 6 5 Impact . | . . . Slashing 11 | . 6 5 Piercing . | . . . Sneak Attacks . | . . . Combat Hostiles . | . . . Follow-up Attacks . | . . . Damage Inflicted 1664 | 147 1077 440 Guns 1085 | 147 825 113 Cannons 242 | . 121 121 Explosions 131 | . 131 . Melee 110 | . . 110 Ramming . | . . . Kinetic 242 | . 121 121 Thermal 618 | 147 325 146 Explosive . | . . . Electromagnetic 694 | . 631 63 Impact . | . . . Slashing 110 | . . 110 Piercing . | . . . Highest Corruption . | . . . Average Corruption . | . . . Corruption Purged . | . . . Overload Shots . | . . . Overflow Damage 20 | . 15 5 Projectiles 5 | . . 5 Explosions 15 | . 15 . Melee . | . . . Knockbacks 11 | . 3 8 Impact . | . . . Kinetic 9 | . 3 6 Secondary 2 | . . 2 Self-Inflicted Damage 36 | . 36 . Shots 2 | . 2 . Rammed . | . . . Targets Rammed . | . . . Kicked . | . . . Crushed . | . . . Highest Temperature 311 | 90 311 184 Average Temperature 67 | 44 76 58 Received Heat Transfer 575 | . 75 500 Effects 3 | . 3 . Interference 2 | . 2 . Short Circuit 1 | . 1 . Siege Activations . | . . . Robots Corrupted . | . . . Combat Hostiles . | . . . Parts Fried 2 | . 2 . Impact Corruptions . | . . . Robots Melted . | . . . Combat Hostiles . | . . . Parts Melted 3 | 1 2 . Heat Transferred 1426 | 384 706 336 Parts Sabotaged . | . . . Parts Stolen . | . . . Parts Stripped . | . . . Power Chain Reactions 2 | . 2 . Missiles Intercepted . | . . . Alert | -11 -10 -10 ------- Run | Scr Mat Min Peak Influence 194 | 15 194 5 Initial 7 | . 7 . Average 40 | 3 49 . Maximum Alert Level . | . . . Low Security (%) 100 | 100 100 100 Level 1 . | . . . Level 2 . | . . . Level 3 . | . . . Level 4 . | . . . Level 5 . | . . . High Security . | . . . Max Security . | . . . Squads Dispatched . | . . . Investigation . | . . . Extermination . | . . . Reinforcement . | . . . Assault . | . . . Garrison . | . . . Intercept . | . . . Construction Impeded . | . . . Haulers Reinforced . | . . . Stealth | -11 -10 -10 --------- Run | Scr Mat Min Distress Signals 1 | . 1 . Communications Jammed . | . . . Distress Signals . | . . . Times Spotted 29 | . 15 14 Peak Tracking Total 10 | . 3 10 Tactical Retreats 4 | . 1 3 Traps | -11 -10 -10 ------- Run | Scr Mat Min Traps Triggered 4 | . 4 . Indirectly . | . . . Trap Hack Attempts . | . . . Triggered . | . . . Disarmed . | . . . Reprogrammed . | . . . Reused . | . . . Traps Extracted . | . . . Installed . | . . . Triggered . | . . . Machines | -11 -10 -10 ---------- Run | Scr Mat Min Machines Disabled . | . . . Max in Single Turn . | . . . Machines Sabotaged . | . . . Garrisons Compromised . | . . . Overloaded Fab Kills . | . . . Fab Network Shutdowns . | . . . Hacking | -11 -10 -10 --------- Run | Scr Mat Min Machines Accessed 8 | . 8 . Terminals 7 | . 7 . Fabricators . | . . . Repair Stations 1 | . 1 . Recycling Units . | . . . Scanalyzers . | . . . Garrison Access . | . . . Total Hacks 23 | . 23 . Successful 19 | . 19 . Failed 4 | . 4 . Catastrophic 1 | . 1 . Database Lockouts . | . . . Manual . | . . . Terminals 18 | . 18 . Fabricators . | . . . Repair Stations 5 | . 5 . Recycling Units . | . . . Scanalyzers . | . . . Garrison Access . | . . . Terminal Hacks 15 | . 15 . Record 9 | . 9 . Prototype ID Bank 1 | . 1 . Locate Traps 3 | . 3 . Hauler Manifests 1 | . 1 . Registered Components 1 | . 1 . Fabricator Hacks . | . . . Repair Station Hacks 4 | . 4 . Scan Component 2 | . 2 . Repair 2 | . 2 . Recycling Unit Hacks . | . . . Scanalyzer . | . . . Garrison Access Hacks . | . . . Unauthorized Hacks . | . . . Terminals . | . . . Fabricators . | . . . Repair Stations . | . . . Recycling Units . | . . . Scanalyzers . | . . . Garrison Access . | . . . Data Cores Recovered . | . . . Used . | . . . Hacking Detections 4 | . 4 . Full Trace Events . | . . . Feedback Events . | . . . Feedback Blocked . | . . . Robot Schematics Acquired . | . . . Robots Built . | . . . Matter . | . . . Time . | . . . Total Robot Build Rating . | . . . Part Schematics Acquired . | . . . Parts Built . | . . . Matter . | . . . Time . | . . . Total Part Build Rating . | . . . Parts Repaired 2 | . 2 . Time 64 | . 64 . Parts Recycled . | . . . Recycled Matter . | . . . Retrieved Matter . | . . . Retrieved Components . | . . . Parts Scanalyzed . | . . . Part Schematics Acquired . | . . . Parts Damaged . | . . . Bothacking | -11 -10 -10 ------------ Run | Scr Mat Min Used RIF Installer . | . . . Robots Hacked . | . . . Non-combat . | . . . Combat . | . . . Robot Hacks Applied . | . . . Relay Couplers Released . | . . . Robots Rewired . | . . . Allies Hacked . | . . . Hacks Repelled . | . . . Allies | -11 -10 -10 -------- Run | Scr Mat Min Total Allies . | . . . Largest Group . | . . . Highest-Rated Group . | . . . Highest-Rated Ally . | . . . Total Orders . | . . . Ally Attacks . | . . . Total Damage . | . . . Kills . | . . . Allies Corrupted . | . . . Allies Melted . | . . . Intel | -11 -10 -10 ------- Run | Scr Mat Min Robot Analysis Total . | . . . Derelict Logs Recovered . | . . . Drone Launches . | . . . Drone Recoveries . | . . . Exploration | -11 -10 -10 ------------- Run | Scr Mat Min Turns Passed 2070 | 151 1657 262 Spaces Moved 1010 | 58 838 114 Core 12 | 10 . 2 Treads 998 | 48 838 112 Legs . | . . . Wheels . | . . . Hover . | . . . Flight . | . . . Fastest Speed 50 | 50 160 160 Average Speed 159 | 154 160 161 Slowest Speed 250 | 160 160 250 Overloaded Moves . | . . . Propulsion Burnouts . | . . . Robots Hopped . | . . . Cave-ins Triggered . | . . . Exploration Rate (%) 45 | 6 99 31 Regions Visited 2 Branch Regions 1 Pre-discovered Areas . | . . . Known Exits Taken 2 | 1 1 . Unknown Exits Taken . | . . . Scrap Searched . | . . . Spaces Dug 1 | . 1 . Terrain Destroyed 8 | . 8 . Melee 1 | . 1 . Projectile . | . . . AOE 7 | . 7 . Terrain Rammed . | . . . Walls Destroyed . | . . . Machines Disabled . | . . . Actions | -11 -10 -10 --------- Run | Scr Mat Min Total 1321 | 104 1070 147 Wait 165 | 16 149 . Move 1008 | 57 837 114 Hop . | . . . Pick Up 26 | 13 11 2 Fast Attach 3 | . 3 . Attach 17 | 7 1 9 Detach . | . . . Swap 15 | 3 11 1 Drop 12 | 1 11 . Fire 64 | 7 41 16 Melee 11 | . 6 5 Ram . | . . . Kick . | . . . Crush . | . . . Escape Stasis . | . . . Rewire . | . . . Trap . | . . . Miscellaneous . | . . . Route ------- -11/Scrapyard -10/Materials (discovered 5 exits: *Mat x3 / *Min x2) -10/Mines (discovered 1 exit: *Mat) History --------- Turn | Location | Event 7 | -11/Scrapyard | Identified exit to Materials 7 | -11/Scrapyard | Discovered exit to Materials (range 15) 152 | -11/Scrapyard | Entered Materials 152 | -10/Materials | Evolved 1 slot: Utility x1 320 | -10/Materials | Build established: Hacker-Mutant 335 | -10/Materials | Identified exit to Mines 335 | -10/Materials | Discovered exit to Mines (range 12) 481 | -10/Materials | Identified exit to Materials 481 | -10/Materials | Discovered exit to Materials (range 10) 993 | -10/Materials | Repaired Imp. Treads 1027 | -10/Materials | Repaired Hvy. EM Pulse Gun 1107 | -10/Materials | Discovered exit to Mines (range 15) 1399 | -10/Materials | Discovered exit to Materials (range 16) 1587 | -10/Materials | Discovered exit to Materials (range 8) 1809 | -10/Materials | Entered Mines 1810 | -10/Mines | Assembled infested the area 1867 | -10/Mines | Core integrity fell below 50% 1935 | -10/Mines | Lost 8 parts (1p2n5w) 2055 | -10/Mines | Core integrity fell below 20% 2067 | -10/Mines | Discovered exit to Materials (range 15) 2071 | -10/Mines | Destroyed by D-53 Grenadier with Mini Grenade Launcher Last Messages --------------- 01978_ Acquired Sml. Laser. 01980_ Acquired 27 matter. 01985_ K-01 Serf collects debris. 01985_ Acquired 24 matter. 01990_ K-01 Serf destroyed. 02009_ U-05 Engineer builds a Wall. 02028_ K-01 Serf collects debris. 02031_ R-06 Scavenger collects Lgt. Ion Engine. 02032_ K-01 Serf collects debris. 02037_ Sml. Laser destroyed. 02044_ The unstable cave ceiling collapses. 02050_ K-01 Serf destroyed. 02054_ Matter Pump disabled. 02057_ The unstable cave ceiling collapses. 02057_ Ion Engine destroyed. 02060_ The unstable cave ceiling collapses. 02062_ Imp. Treads destroyed. 02064_ The unstable cave ceiling collapses. 02067_ Imp. Treads destroyed. 02067_ EXIT=FOUND: MATERIALS Map ----- +----------------------------------------------------+ | ?????????????????????????????????????????????????? | | ?????????????????????????????????????????????????? | | ?????????????????????????????????????????????????? | | ?????????????????????????????????????????????????? | | ?????????????????????????????????????????????????? | | ?????????????????????????????????????????????????? | | ?????????????????????????????????????????????????? | | ?????????????????????????????????????????????????? | | ?????????????????????????????????????????????????? | | ?????????????????????????????????????????????????? | | ?????????????????????????????????????????????????? | | ?????????????????????##??????????????????????????? | | ??????????????????? ??????????????????????????? | | ???????????????????< ??????????????????????????? | | ???????????????????? ?????????????????????????? | | ???????????????????? ???????#?????????????????? | | ????????????????????# ?????? #?????????????????? | | ???????????????????## ????## #?????????????????? | | ???????????????????# #??# ??????????????????? | | ???????????????????? ## ???????????????????? | | ????????????????????? ???????????????????? | | ?????????????????????? ????????????????????? | | ??????????????????????? ###??????????????????? | | ?????????????????????### # ##?????????????????? | | ?????????????????????# #?????????????????? | | ?????????????????????## @ ##?????????????????? | | ????????????????? ??# ##????????????????? | | ????????????????? ?## #????????????????? | | ???????????????? # ##???????????????? | | ????????????????# # #???????????????? | | ????????????????# #???????????????? | | ?????????????????# #???????????????? | | ?????????????????###### #???????????????? | | ??????????????????????## ##??????????????? | | ???????????## ????###?## dd #??????????????? | | ??????????## ??## ### #??????????????? | | ??????????# ### # #??????????????? | | ?????????? *% # ##??????????????? | | ?????????? % # ##???????????????? | | ??????????# ###????????????????? | | ?????????????# # ##??????????????????? | | ????????????### ###???????????????????? | | ???????????## # #????????????????????? | | ???###????## #????????????????????? | | ??## #??## #????????????????????? | | ??# ??# #####????????????????????? | | ??# ??# ###??????????????????????? | | ??# #### #??????????????????????? | | ??# ###### #??????????????????????? | | ???# #???## # ####????????????????????? | +----------------------------------------------------+ Best States ------------- Heat Dissipation 25 Energy Generation 10 Energy Capacity 650 Matter Stores 300 Matter Capacity 300 Sight Range 16 Terrain Scan Density 10 Armor Coverage 150 Resistance: KI 35 Resistance: TH 35 Resistance: EX 35 Resistance: EM 35 Resistance: I 35 Resistance: S 35 Resistance: P 35 Utility Shielding 33 Evasion (%) 40 Recoil Reduction 2 Offensive Hacking 20 Item Schematics ----------------- None Robot Schematics ------------------ None Fabricated ------------ Nothing Alien Tech Used ----------------- None Achievements -------------- None Challenges ------------ None Game ------ Seed VortexSmartbombFalx Manual? 0 Play Time 00:28:41 Cumulative 35.8 hours Start 2020.11.15 @ 13:57:45 End 2020.11.15 @ 14:23:10 Sessions 1 Manual Loads 0 Difficulty Explorer Special Mode Halloween2020/ForbiddenLore Game No. 33 Rogue 20 Adventurer 0 Explorer 13 Win Type - Total 0 Types 0/0/0/0/0/0/0/0/0 Lore% 23 Gallery% 30 Achievement% 26 Wizard Run 0 Options --------- ASCII 0 Keyboard 0 Movement Mouse Keybinds 0 Fullscreen 1 Font 18/X11Bold Map View 76x50 Tactical HUD 1 Map Filters NONE Filters NONE Steam 1 RUN: 29bc5229-b643-4034-bb9a-790cf1779ebc